[Event "Early-Titled-Tuesday-Blitz-September-05-2023"]
[Site "Chess.com"]
[Date "2023.09.05"]
[Round "7"]
[White "MatthewG-p4p"]
[Black "Evgeny81"]
[Result "1-0"]
[WhiteElo "2880"]
[BlackElo "2746"]
[TimeControl "180+1"]
[EndTime "9:14:46 PDT"]
[Termination "MatthewG-p4p won by resignation"]

1. e4 {[%clk 0:02:59.9]} 1... c5 {[%clk 0:02:39.6]} 2. c3 {[%clk 0:02:58.9]}
2... b6 {[%clk 0:02:38.5]} 3. d4 {[%clk 0:02:58.4]} 3... Bb7 {[%clk 0:02:39.1]}
4. Bd3 {[%clk 0:02:56.6]} 4... e6 {[%clk 0:02:37.9]} 5. Nf3 {[%clk 0:02:55.8]}
5... Nf6 {[%clk 0:02:38.4]} 6. Qe2 {[%clk 0:02:53.8]} 6... Be7 {[%clk
0:02:38.3]} 7. O-O {[%clk 0:02:53.8]} 7... cxd4 {[%clk 0:02:34.1]} 8. cxd4
{[%clk 0:02:53.2]} 8... d5 {[%clk 0:02:34.5]} 9. e5 {[%clk 0:02:52.1]} 9... Nfd7
{[%clk 0:02:34.7]} 10. Nc3 {[%clk 0:02:50.8]} 10... Qc8 {[%clk 0:02:29.7]} 11.
Be3 {[%clk 0:02:46]} 11... Ba6 {[%clk 0:02:29.8]} 12. Nb5 {[%clk 0:02:38.8]}
12... Bxb5 {[%clk 0:02:29.5]} 13. Bxb5 {[%clk 0:02:39.7]} 13... O-O {[%clk
0:02:24]} 14. Rac1 {[%clk 0:02:38.3]} 14... Qb7 {[%clk 0:02:24.5]} 15. Bd3
{[%clk 0:02:35.5]} 15... Rc8 {[%clk 0:02:15.7]} 16. Bg5 {[%clk 0:02:34.5]} 16...
Bf8 {[%clk 0:02:09.9]} 17. Rxc8 {[%clk 0:02:19.7]} 17... Qxc8 {[%clk 0:02:09.6]}
18. Rc1 {[%clk 0:02:20.6]} 18... Qb7 {[%clk 0:01:38.1]} 19. Bd8 {[%clk
0:01:56.4]} 19... b5 {[%clk 0:01:05.5]} 20. Bxh7+ {[%clk 0:01:28.1]} 20... Kxh7
{[%clk 0:00:59.3]} 21. Ng5+ {[%clk 0:01:27.8]} 21... Kg6 {[%clk 0:00:38.2]} 22.
Qd3+ {[%clk 0:01:24.2]} 22... f5 {[%clk 0:00:32.4]} 23. exf6+ {[%clk 0:01:24.3]}
1-0

[Event "Early-Titled-Tuesday-Blitz-September-05-2023"]
[Site "Chess.com"]
[Date "2023.09.05"]
[Round "7"]
[White "zverr1"]
[Black "lacafi"]
[Result "1-0"]
[WhiteElo "2484"]
[BlackElo "2222"]
[TimeControl "180+1"]
[EndTime "9:14:51 PDT"]
[Termination "zverr1 won on time"]

1. d4 {[%clk 0:02:46.6]} 1... f5 {[%clk 0:02:59.7]} 2. Bg5 {[%clk 0:02:45.6]}
2... g6 {[%clk 0:02:59.4]} 3. h4 {[%clk 0:02:41.1]} 3... Bg7 {[%clk 0:02:59.8]}
4. h5 {[%clk 0:02:37.2]} 4... d5 {[%clk 0:02:56.7]} 5. h6 {[%clk 0:02:36.3]}
5... Bf6 {[%clk 0:02:56.5]} 6. Qd2 {[%clk 0:02:33.9]} 6... Bxg5 {[%clk
0:02:50.4]} 7. Qxg5 {[%clk 0:02:34.8]} 7... Nf6 {[%clk 0:02:50.9]} 8. f3 {[%clk
0:02:31.8]} 8... Qd6 {[%clk 0:02:47.7]} 9. Nc3 {[%clk 0:02:28.1]} 9... c6 {[%clk
0:02:42.4]} 10. O-O-O {[%clk 0:02:27.2]} 10... O-O {[%clk 0:02:38.2]} 11. Rh4
{[%clk 0:02:22]} 11... b5 {[%clk 0:02:27.8]} 12. e4 {[%clk 0:02:18.7]} 12...
fxe4 {[%clk 0:02:21.5]} 13. fxe4 {[%clk 0:02:19.6]} 13... dxe4 {[%clk
0:02:20.6]} 14. Nxe4 {[%clk 0:02:19.2]} 14... Qe6 {[%clk 0:02:00.5]} 15. Bd3
{[%clk 0:02:09.5]} 15... Qxa2 {[%clk 0:01:51.3]} 16. Nf3 {[%clk 0:02:08]} 16...
Bf5 {[%clk 0:01:44.9]} 17. Ne5 {[%clk 0:02:03.5]} 17... Qa1+ {[%clk 0:01:20.4]}
18. Kd2 {[%clk 0:02:02.3]} 18... Qxb2 {[%clk 0:01:21.1]} 19. Nc5 {[%clk
0:01:54.8]} 19... Qb4+ {[%clk 0:00:34.2]} 20. Ke2 {[%clk 0:01:49.9]} 20... Bxd3+
{[%clk 0:00:05.2]} 21. Rxd3 {[%clk 0:01:50.8]} 21... Kh8 {[%clk 0:00:02.6]} 22.
Ne6 {[%clk 0:01:42.8]} 22... a5 {[%clk 0:00:02.2]} 23. Nxf8 {[%clk 0:01:33.3]}
1-0

[Event "Early-Titled-Tuesday-Blitz-September-05-2023"]
[Site "Chess.com"]
[Date "2023.09.05"]
[Round "7"]
[White "Polish_fighter3000"]
[Black "frederiksvane"]
[Result "1-0"]
[WhiteElo "3097"]
[BlackElo "2924"]
[TimeControl "180+1"]
[EndTime "9:14:52 PDT"]
[Termination "Polish_fighter3000 won by resignation"]

1. b4 {[%clk 0:03:00.9]} 1... e5 {[%clk 0:02:57.6]} 2. Bb2 {[%clk 0:03:01.3]}
2... Bxb4 {[%clk 0:02:57.2]} 3. Bxe5 {[%clk 0:03:01.9]} 3... Nf6 {[%clk
0:02:57.8]} 4. e3 {[%clk 0:03:02.3]} 4... O-O {[%clk 0:02:58.1]} 5. Nf3 {[%clk
0:03:02.6]} 5... d5 {[%clk 0:02:58.2]} 6. a3 {[%clk 0:02:57.3]} 6... Be7 {[%clk
0:02:57.9]} 7. c4 {[%clk 0:02:56.9]} 7... c5 {[%clk 0:02:56.9]} 8. Nc3 {[%clk
0:02:47.2]} 8... d4 {[%clk 0:02:33.1]} 9. exd4 {[%clk 0:02:44.8]} 9... Nc6
{[%clk 0:02:28.1]} 10. d5 {[%clk 0:02:24]} 10... Nxe5 {[%clk 0:02:28]} 11. Nxe5
{[%clk 0:02:24.9]} 11... Re8 {[%clk 0:02:21.9]} 12. Be2 {[%clk 0:02:22.1]} 12...
Bd6 {[%clk 0:02:04.3]} 13. f4 {[%clk 0:02:17.9]} 13... Bxe5 {[%clk 0:01:47.8]}
14. fxe5 {[%clk 0:02:18.8]} 14... Rxe5 {[%clk 0:01:48.3]} 15. O-O {[%clk
0:02:18.9]} 15... Ne4 {[%clk 0:01:41.8]} 16. Nxe4 {[%clk 0:01:16.8]} 16... Rxe4
{[%clk 0:01:42.7]} 17. Bd3 {[%clk 0:01:17.3]} 17... Re7 {[%clk 0:01:43.4]} 18.
Qh5 {[%clk 0:01:14]} 18... g6 {[%clk 0:01:43.8]} 19. Qf3 {[%clk 0:01:14.2]}
19... Qd6 {[%clk 0:01:23.2]} 20. Rae1 {[%clk 0:01:03.5]} 20... Bd7 {[%clk
0:01:23.7]} 21. Rxe7 {[%clk 0:01:03.8]} 21... Qxe7 {[%clk 0:01:24.6]} 22. d6
{[%clk 0:01:02.4]} 22... Qxd6 {[%clk 0:01:25.1]} 23. Qxf7+ {[%clk 0:00:59.4]}
23... Kh8 {[%clk 0:01:25.6]} 24. Bxg6 {[%clk 0:00:45.9]} 24... hxg6 {[%clk
0:01:05.4]} 25. Rf4 {[%clk 0:00:45.2]} 25... g5 {[%clk 0:01:06.1]} 26. Qh5+
{[%clk 0:00:44.1]} 1-0

[Event "Early-Titled-Tuesday-Blitz-September-05-2023"]
[Site "Chess.com"]
[Date "2023.09.05"]
[Round "7"]
[White "falzehope0"]
[Black "Darius321"]
[Result "1-0"]
[WhiteElo "2461"]
[BlackElo "2310"]
[TimeControl "180+1"]
[EndTime "9:14:54 PDT"]
[Termination "falzehope0 won by resignation"]

1. d4 {[%clk 0:03:00.9]} 1... d5 {[%clk 0:02:59.4]} 2. e3 {[%clk 0:03:01.1]}
2... Bf5 {[%clk 0:02:58.3]} 3. c4 {[%clk 0:02:58.8]} 3... e6 {[%clk 0:02:58.8]}
4. cxd5 {[%clk 0:02:57.8]} 4... exd5 {[%clk 0:02:58.6]} 5. Qb3 {[%clk
0:02:55.3]} 5... Nc6 {[%clk 0:02:48.3]} 6. Qxb7 {[%clk 0:02:39.7]} 6... Nb4
{[%clk 0:02:43.5]} 7. Bb5+ {[%clk 0:02:39]} 7... Ke7 {[%clk 0:02:27.1]} 8. Na3
{[%clk 0:02:31.4]} 8... Rb8 {[%clk 0:02:22.5]} 9. Qxa7 {[%clk 0:02:27.7]} 9...
Rxb5 {[%clk 0:02:19.9]} 10. Nxb5 {[%clk 0:02:26]} 10... Nc2+ {[%clk 0:02:17.8]}
11. Ke2 {[%clk 0:02:20.1]} 11... Nxa1 {[%clk 0:02:15.8]} 12. Nxc7 {[%clk
0:01:53.7]} 12... Kf6 {[%clk 0:02:15.3]} 13. Nf3 {[%clk 0:01:39.6]} 13... Ne7
{[%clk 0:01:55.8]} 14. Qb6+ {[%clk 0:01:20.9]} 14... Be6 {[%clk 0:01:46.4]} 15.
g4 {[%clk 0:01:07.3]} 15... g5 {[%clk 0:01:43.1]} 16. e4 {[%clk 0:01:05.5]}
16... h6 {[%clk 0:01:37.5]} 17. e5+ {[%clk 0:00:55.5]} 17... Kg7 {[%clk
0:01:21.8]} 18. Nxe6+ {[%clk 0:00:52.2]} 18... fxe6 {[%clk 0:01:15.2]} 19. Qxd8
{[%clk 0:00:51.3]} 19... Ng6 {[%clk 0:01:13]} 20. Qd7+ {[%clk 0:00:47.9]} 20...
Be7 {[%clk 0:01:12.7]} 21. Qxe6 {[%clk 0:00:47]} 21... Rf8 {[%clk 0:01:08.1]}
22. h4 {[%clk 0:00:42.6]} 22... Nc2 {[%clk 0:01:08]} 23. h5 {[%clk 0:00:41.4]}
23... Rxf3 {[%clk 0:01:06]} 24. Qxg6+ {[%clk 0:00:38.9]} 24... Kf8 {[%clk
0:01:05.8]} 25. Qxh6+ {[%clk 0:00:37.1]} 25... Ke8 {[%clk 0:01:05.7]} 26. Qc6+
{[%clk 0:00:36.7]} 26... Kf7 {[%clk 0:01:04.1]} 27. Qxc2 {[%clk 0:00:35.3]} 1-0

[Event "Early-Titled-Tuesday-Blitz-September-05-2023"]
[Site "Chess.com"]
[Date "2023.09.05"]
[Round "7"]
[White "ashwanitiwari"]
[Black "RIPOL"]
[Result "0-1"]
[WhiteElo "2224"]
[BlackElo "2413"]
[TimeControl "180+1"]
[EndTime "9:14:57 PDT"]
[Termination "RIPOL won by resignation"]

1. b3 {[%clk 0:03:00.9]} 1... e5 {[%clk 0:02:58.9]} 2. Bb2 {[%clk 0:03:00.2]}
2... Nc6 {[%clk 0:02:58.7]} 3. e3 {[%clk 0:03:00.3]} 3... Nf6 {[%clk 0:02:58.5]}
4. Bb5 {[%clk 0:02:59.5]} 4... d6 {[%clk 0:02:58.4]} 5. d4 {[%clk 0:02:59.7]}
5... exd4 {[%clk 0:02:53.2]} 6. exd4 {[%clk 0:02:59.1]} 6... d5 {[%clk
0:02:50.1]} 7. Nf3 {[%clk 0:02:58.1]} 7... Be7 {[%clk 0:02:43.7]} 8. O-O {[%clk
0:02:57.4]} 8... O-O {[%clk 0:02:44.2]} 9. Bxc6 {[%clk 0:02:57.4]} 9... bxc6
{[%clk 0:02:43.4]} 10. Ne5 {[%clk 0:02:56.4]} 10... Bb7 {[%clk 0:02:39.4]} 11.
Nd2 {[%clk 0:02:54.7]} 11... c5 {[%clk 0:02:38.4]} 12. Ndf3 {[%clk 0:02:45.4]}
12... Ne4 {[%clk 0:02:22.5]} 13. c4 {[%clk 0:02:42.9]} 13... dxc4 {[%clk
0:02:14.9]} 14. Nxc4 {[%clk 0:02:36.8]} 14... Bf6 {[%clk 0:02:00.3]} 15. dxc5
{[%clk 0:02:35.7]} 15... Bxb2 {[%clk 0:01:59.2]} 16. Nxb2 {[%clk 0:02:34.7]}
16... Qf6 {[%clk 0:01:53.5]} 17. Nc4 {[%clk 0:02:26.4]} 17... Nc3 {[%clk
0:01:49.9]} 18. Qd3 {[%clk 0:02:14.1]} 18... Rad8 {[%clk 0:01:43]} 19. Qe3
{[%clk 0:02:12.5]} 19... Rfe8 {[%clk 0:01:33]} 20. Qg5 {[%clk 0:02:06.4]} 20...
Ne2+ {[%clk 0:01:27.3]} 21. Kh1 {[%clk 0:02:03]} 21... Qxf3 {[%clk 0:01:26.5]}
22. Rae1 {[%clk 0:01:40.3]} 22... Qd5 {[%clk 0:01:14.2]} 23. Qxd5 {[%clk
0:01:26.6]} 23... Bxd5 {[%clk 0:01:12.8]} 24. Ne3 {[%clk 0:01:26.2]} 24... Nc3
{[%clk 0:01:06.6]} 25. Nxd5 {[%clk 0:01:19.1]} 25... Nxd5 {[%clk 0:01:01.3]} 26.
g3 {[%clk 0:01:17.2]} 26... f6 {[%clk 0:01:00.1]} 27. Kg2 {[%clk 0:01:16.4]}
27... c6 {[%clk 0:00:59.7]} 28. h4 {[%clk 0:01:10]} 28... Kf7 {[%clk 0:00:59.3]}
29. Rxe8 {[%clk 0:01:08.6]} 29... Rxe8 {[%clk 0:00:58.5]} 30. Rc1 {[%clk
0:01:08.9]} 30... Re2 {[%clk 0:00:56.8]} 31. a4 {[%clk 0:01:07.9]} 31... Rb2
{[%clk 0:00:55.9]} 0-1

[Event "Early-Titled-Tuesday-Blitz-September-05-2023"]
[Site "Chess.com"]
[Date "2023.09.05"]
[Round "7"]
[White "Bauman_Guy"]
[Black "Hope_6"]
[Result "1-0"]
[WhiteElo "2871"]
[BlackElo "2713"]
[TimeControl "180+1"]
[EndTime "9:15:02 PDT"]
[Termination "Bauman_Guy won by resignation"]

1. e4 {[%clk 0:03:00.9]} 1... c5 {[%clk 0:03:00.4]} 2. Nf3 {[%clk 0:03:00.9]}
2... e6 {[%clk 0:03:00.9]} 3. d4 {[%clk 0:03:01.3]} 3... cxd4 {[%clk 0:03:01.8]}
4. Nxd4 {[%clk 0:03:02.2]} 4... Nf6 {[%clk 0:03:02.3]} 5. Nc3 {[%clk 0:03:02.7]}
5... Nc6 {[%clk 0:03:03.2]} 6. Ndb5 {[%clk 0:03:02.9]} 6... Bc5 {[%clk
0:03:02.8]} 7. Nd6+ {[%clk 0:03:02.9]} 7... Ke7 {[%clk 0:03:03.5]} 8. Bf4 {[%clk
0:03:03.4]} 8... e5 {[%clk 0:03:03]} 9. Nf5+ {[%clk 0:03:04]} 9... Kf8 {[%clk
0:03:03.9]} 10. Bg5 {[%clk 0:03:04.9]} 10... d6 {[%clk 0:03:02.8]} 11. Bc4
{[%clk 0:03:04.9]} 11... Be6 {[%clk 0:03:03.2]} 12. Bb3 {[%clk 0:03:01.3]} 12...
h6 {[%clk 0:03:02.6]} 13. Bxf6 {[%clk 0:03:01.3]} 13... Qxf6 {[%clk 0:03:02.2]}
14. Nd5 {[%clk 0:03:00.9]} 14... Qd8 {[%clk 0:03:01.8]} 15. O-O {[%clk
0:03:00.5]} 15... g6 {[%clk 0:03:01.5]} 16. Nfe3 {[%clk 0:03:00.9]} 16... Kg7
{[%clk 0:03:01.8]} 17. c3 {[%clk 0:03:01.1]} 17... Rf8 {[%clk 0:02:56.4]} 18.
Bc2 {[%clk 0:03:00.9]} 18... a6 {[%clk 0:02:53.9]} 19. a4 {[%clk 0:03:00.5]}
19... Rc8 {[%clk 0:02:50]} 20. b4 {[%clk 0:03:00.2]} 20... Ba7 {[%clk
0:02:50.3]} 21. a5 {[%clk 0:02:58.6]} 21... Ne7 {[%clk 0:02:49.4]} 22. Bb3
{[%clk 0:02:50.6]} 22... Bxe3 {[%clk 0:02:28.5]} 23. Nxe3 {[%clk 0:02:37.6]}
23... Rxc3 {[%clk 0:02:24.5]} 24. Bxe6 {[%clk 0:02:37.4]} 24... fxe6 {[%clk
0:02:24.9]} 25. Qg4 {[%clk 0:02:37.5]} 25... Qc8 {[%clk 0:02:13.7]} 26. Rad1
{[%clk 0:02:35.5]} 26... Rf4 {[%clk 0:02:07.9]} 27. Qh3 {[%clk 0:02:35.6]} 27...
Qd7 {[%clk 0:01:32.3]} 28. Nf5+ {[%clk 0:02:29.6]} 28... gxf5 {[%clk 0:01:30.5]}
29. Qxc3 {[%clk 0:02:30.5]} 29... Rxe4 {[%clk 0:01:30.3]} 30. f3 {[%clk
0:02:29.4]} 30... Re2 {[%clk 0:01:05.8]} 31. Qd3 {[%clk 0:02:25.8]} 31... Rb2
{[%clk 0:01:04.3]} 32. Qxd6 {[%clk 0:02:25.4]} 32... Qxd6 {[%clk 0:01:03.7]} 33.
Rxd6 {[%clk 0:02:26.3]} 33... Kf6 {[%clk 0:01:03.1]} 34. Rb6 {[%clk 0:02:24.7]}
34... Nd5 {[%clk 0:01:02.9]} 35. Rxb7 {[%clk 0:02:24.9]} 35... Ne3 {[%clk
0:01:00.5]} 36. Ra1 {[%clk 0:02:21.4]} 36... Nxg2 {[%clk 0:00:43.5]} 37. b5
{[%clk 0:02:20.6]} 37... Nh4 {[%clk 0:00:41.5]} 38. bxa6 {[%clk 0:02:14.3]}
38... Nxf3+ {[%clk 0:00:40.4]} 39. Kf1 {[%clk 0:02:14.7]} 39... Rd2 {[%clk
0:00:40.5]} 40. Ra3 {[%clk 0:02:12.4]} 40... e4 {[%clk 0:00:31.5]} 41. a7 {[%clk
0:02:10.5]} 41... f4 {[%clk 0:00:22.4]} 42. Rxf3 {[%clk 0:02:09.9]} 42... exf3
{[%clk 0:00:22.7]} 43. a8=Q {[%clk 0:02:09.3]} 1-0

[Event "Early-Titled-Tuesday-Blitz-September-05-2023"]
[Site "Chess.com"]
[Date "2023.09.05"]
[Round "7"]
[White "isaak2009"]
[Black "Eloist"]
[Result "1/2-1/2"]
[WhiteElo "2539"]
[BlackElo "2442"]
[TimeControl "180+1"]
[EndTime "9:15:03 PDT"]
[Termination "Game drawn by agreement"]

1. Nf3 {[%clk 0:02:53.5]} 1... Nf6 {[%clk 0:02:59.5]} 2. g3 {[%clk 0:02:45]}
2... b6 {[%clk 0:02:58.8]} 3. Bg2 {[%clk 0:02:45.9]} 3... Bb7 {[%clk 0:02:59.1]}
4. O-O {[%clk 0:02:44.4]} 4... e6 {[%clk 0:02:59.2]} 5. d3 {[%clk 0:02:45.3]}
5... d5 {[%clk 0:02:58.8]} 6. Nbd2 {[%clk 0:02:43.2]} 6... Nbd7 {[%clk
0:02:58.2]} 7. e4 {[%clk 0:02:43.3]} 7... dxe4 {[%clk 0:02:58.4]} 8. dxe4 {[%clk
0:02:41.4]} 8... Nxe4 {[%clk 0:02:56.5]} 9. Ng5 {[%clk 0:02:41.4]} 9... Qxg5
{[%clk 0:02:18.9]} 10. Nxe4 {[%clk 0:02:37.4]} 10... Qd8 {[%clk 0:02:04.4]} 11.
Nf6+ {[%clk 0:02:26.9]} 11... Nxf6 {[%clk 0:01:44.6]} 12. Bxb7 {[%clk
0:02:27.8]} 12... Qxd1 {[%clk 0:01:36.9]} 13. Rxd1 {[%clk 0:02:25]} 13... Rd8
{[%clk 0:01:29.2]} 14. Bc6+ {[%clk 0:02:24.6]} 14... Nd7 {[%clk 0:01:20.5]} 15.
Bf4 {[%clk 0:02:23.7]} 15... Bd6 {[%clk 0:01:01.5]} 16. Bxd6 {[%clk 0:02:23.4]}
16... cxd6 {[%clk 0:01:01.3]} 17. Rxd6 {[%clk 0:02:24.3]} 17... Ke7 {[%clk
0:00:59]} 18. Rxd7+ {[%clk 0:02:24]} 18... Rxd7 {[%clk 0:00:58.6]} 19. Bxd7
{[%clk 0:02:24.9]} 19... Kxd7 {[%clk 0:00:58.9]} 20. Rd1+ {[%clk 0:02:25.8]}
20... Ke7 {[%clk 0:00:54.2]} 21. f4 {[%clk 0:02:24.2]} 21... Rd8 {[%clk
0:00:44.8]} 22. Rxd8 {[%clk 0:02:20.7]} 22... Kxd8 {[%clk 0:00:44.8]} 23. Kf2
{[%clk 0:02:21.6]} 23... Kd7 {[%clk 0:00:44.5]} 24. Ke3 {[%clk 0:02:22.5]} 24...
Kd6 {[%clk 0:00:43.9]} 25. Kd4 {[%clk 0:02:22.2]} 25... f6 {[%clk 0:00:20.2]}
26. g4 {[%clk 0:02:16.3]} 26... Kc6 {[%clk 0:00:15.1]} 27. h4 {[%clk 0:02:13.8]}
27... b5 {[%clk 0:00:14.5]} 28. a3 {[%clk 0:02:11.5]} 28... a5 {[%clk
0:00:14.1]} 29. b3 {[%clk 0:02:12]} 29... Kd6 {[%clk 0:00:13.6]} 30. c4 {[%clk
0:02:11.1]} 30... Kc6 {[%clk 0:00:09.7]} 31. g5 {[%clk 0:01:59.8]} 31... Kb6
{[%clk 0:00:06.1]} 32. h5 {[%clk 0:01:55.3]} 32... h6 {[%clk 0:00:06.1]} 33.
gxh6 {[%clk 0:01:49.2]} 33... gxh6 {[%clk 0:00:06.2]} 1/2-1/2

[Event "Early-Titled-Tuesday-Blitz-September-05-2023"]
[Site "Chess.com"]
[Date "2023.09.05"]
[Round "7"]
[White "valemava"]
[Black "Shockerlover"]
[Result "1-0"]
[WhiteElo "2287"]
[BlackElo "1977"]
[TimeControl "180+1"]
[EndTime "9:15:07 PDT"]
[Termination "valemava won by checkmate"]

1. e4 {[%clk 0:03:00.9]} 1... c5 {[%clk 0:02:52.5]} 2. a3 {[%clk 0:03:00.3]}
2... Nc6 {[%clk 0:02:52.4]} 3. b4 {[%clk 0:03:00.3]} 3... cxb4 {[%clk
0:02:47.9]} 4. axb4 {[%clk 0:03:01.2]} 4... Nxb4 {[%clk 0:02:45.7]} 5. c3 {[%clk
0:03:01.2]} 5... Nc6 {[%clk 0:02:45.2]} 6. d4 {[%clk 0:03:02.1]} 6... d5 {[%clk
0:02:40.3]} 7. exd5 {[%clk 0:03:03]} 7... Qxd5 {[%clk 0:02:39.5]} 8. Na3 {[%clk
0:03:03.4]} 8... e5 {[%clk 0:02:20.9]} 9. Nb5 {[%clk 0:03:04.3]} 9... Bd6 {[%clk
0:02:06.1]} 10. Ba3 {[%clk 0:02:54.6]} 10... Qe4+ {[%clk 0:01:57.6]} 11. Ne2
{[%clk 0:02:35.7]} 11... Bxa3 {[%clk 0:01:39.1]} 12. Rxa3 {[%clk 0:02:34.4]}
12... Kf8 {[%clk 0:01:34.7]} 13. d5 {[%clk 0:02:09.4]} 13... Nd8 {[%clk
0:01:21.2]} 14. Ra4 {[%clk 0:02:03.7]} 14... Qf5 {[%clk 0:01:11.1]} 15. Ng3
{[%clk 0:02:01.2]} 15... Qd7 {[%clk 0:01:01.1]} 16. d6 {[%clk 0:01:54]} 16... a6
{[%clk 0:00:53.5]} 17. Nc7 {[%clk 0:01:52.7]} 17... Rb8 {[%clk 0:00:52.9]} 18.
Be2 {[%clk 0:01:37.6]} 18... Nf6 {[%clk 0:00:51.4]} 19. O-O {[%clk 0:01:35.9]}
19... Nc6 {[%clk 0:00:33.2]} 20. h3 {[%clk 0:01:31.9]} 20... g6 {[%clk
0:00:32.7]} 21. Rh4 {[%clk 0:01:26.6]} 21... Kg7 {[%clk 0:00:31.6]} 22. Qd2
{[%clk 0:01:26.1]} 22... h5 {[%clk 0:00:30.1]} 23. Qg5 {[%clk 0:01:23.7]} 23...
Nh7 {[%clk 0:00:18.6]} 24. Nxh5+ {[%clk 0:01:17.6]} 24... Kf8 {[%clk 0:00:15.7]}
25. Qh6+ {[%clk 0:01:16.2]} 25... Kg8 {[%clk 0:00:13.1]} 26. Qg7# {[%clk
0:01:15.7]} 1-0

[Event "Early-Titled-Tuesday-Blitz-September-05-2023"]
[Site "Chess.com"]
[Date "2023.09.05"]
[Round "7"]
[White "topin8"]
[Black "Daniel_Salinas"]
[Result "0-1"]
[WhiteElo "2444"]
[BlackElo "2328"]
[TimeControl "180+1"]
[EndTime "9:15:09 PDT"]
[Termination "Daniel_Salinas won by resignation"]

1. e4 {[%clk 0:02:41.9]} 1... c6 {[%clk 0:02:57.1]} 2. d4 {[%clk 0:02:39.9]}
2... d5 {[%clk 0:02:57.8]} 3. e5 {[%clk 0:02:40.3]} 3... c5 {[%clk 0:02:58.4]}
4. dxc5 {[%clk 0:02:39.2]} 4... e6 {[%clk 0:02:58.9]} 5. a3 {[%clk 0:02:34.4]}
5... Bxc5 {[%clk 0:02:59.2]} 6. b4 {[%clk 0:02:35]} 6... Be7 {[%clk 0:02:59.8]}
7. Bb2 {[%clk 0:02:34]} 7... a5 {[%clk 0:02:59.4]} 8. b5 {[%clk 0:01:53.1]} 8...
f6 {[%clk 0:02:58.9]} 9. Nf3 {[%clk 0:01:52.5]} 9... Nd7 {[%clk 0:02:59.1]} 10.
Bd3 {[%clk 0:01:51.6]} 10... Nh6 {[%clk 0:02:58.6]} 11. O-O {[%clk 0:01:50.4]}
11... Nf7 {[%clk 0:02:58.6]} 12. Re1 {[%clk 0:01:48.6]} 12... fxe5 {[%clk
0:02:52]} 13. Nxe5 {[%clk 0:01:46.7]} 13... Ndxe5 {[%clk 0:02:50.9]} 14. Bxe5
{[%clk 0:01:47.2]} 14... Nxe5 {[%clk 0:02:50.6]} 15. Rxe5 {[%clk 0:01:48.1]}
15... Bf6 {[%clk 0:02:45]} 16. Qh5+ {[%clk 0:01:47.9]} 16... g6 {[%clk
0:02:36.3]} 17. Qe2 {[%clk 0:01:37.7]} 17... Qd6 {[%clk 0:02:23.7]} 18. f4
{[%clk 0:01:32.6]} 18... Bxe5 {[%clk 0:02:23.6]} 19. fxe5 {[%clk 0:01:33.5]}
19... Qc5+ {[%clk 0:02:23.6]} 20. Kh1 {[%clk 0:01:33.9]} 20... O-O {[%clk
0:02:24.1]} 21. Nd2 {[%clk 0:01:31.7]} 21... Qf2 {[%clk 0:01:56.9]} 22. Qd1
{[%clk 0:01:14.3]} 22... Bd7 {[%clk 0:01:53.4]} 23. Nf3 {[%clk 0:01:12.4]} 23...
Rac8 {[%clk 0:01:48]} 24. Qc1 {[%clk 0:00:57.6]} 24... Rxf3 {[%clk 0:01:43]} 25.
gxf3 {[%clk 0:00:58.5]} 25... Qxf3+ {[%clk 0:01:43.9]} 26. Kg1 {[%clk
0:00:58.8]} 26... Qg4+ {[%clk 0:01:29.8]} 27. Kh1 {[%clk 0:00:58.4]} 27... Rf8
{[%clk 0:01:28.1]} 28. Qd2 {[%clk 0:00:41.3]} 28... Qd4 {[%clk 0:01:22.4]} 29.
Re1 {[%clk 0:00:37.5]} 29... Bxb5 {[%clk 0:01:19.3]} 0-1

[Event "Early-Titled-Tuesday-Blitz-September-05-2023"]
[Site "Chess.com"]
[Date "2023.09.05"]
[Round "7"]
[White "jsdbv18"]
[Black "VitaliyBernadskiy"]
[Result "0-1"]
[WhiteElo "2620"]
[BlackElo "2826"]
[TimeControl "180+1"]
[EndTime "9:15:10 PDT"]
[Termination "VitaliyBernadskiy won by resignation"]

1. d4 {[%clk 0:02:57.3]} 1... d5 {[%clk 0:02:59.3]} 2. c4 {[%clk 0:02:56.9]}
2... c6 {[%clk 0:02:59.8]} 3. Nf3 {[%clk 0:02:57]} 3... Nf6 {[%clk 0:02:59.8]}
4. Nc3 {[%clk 0:02:56.7]} 4... e6 {[%clk 0:02:59.8]} 5. e3 {[%clk 0:02:55.1]}
5... Nbd7 {[%clk 0:02:58.9]} 6. Bd3 {[%clk 0:02:55.4]} 6... dxc4 {[%clk
0:02:57.3]} 7. Bxc4 {[%clk 0:02:56]} 7... b5 {[%clk 0:02:57.2]} 8. Bd3 {[%clk
0:02:56.3]} 8... Bb7 {[%clk 0:02:57.5]} 9. O-O {[%clk 0:02:55.8]} 9... Bd6
{[%clk 0:02:48.7]} 10. a4 {[%clk 0:02:52.9]} 10... b4 {[%clk 0:02:48.3]} 11. Ne4
{[%clk 0:02:53]} 11... Be7 {[%clk 0:02:47.8]} 12. Nxf6+ {[%clk 0:02:32.3]} 12...
Nxf6 {[%clk 0:02:48.7]} 13. b3 {[%clk 0:02:31]} 13... O-O {[%clk 0:02:43.7]} 14.
Bb2 {[%clk 0:02:29.7]} 14... c5 {[%clk 0:02:42.7]} 15. Rc1 {[%clk 0:02:28.7]}
15... cxd4 {[%clk 0:02:40.2]} 16. Bxd4 {[%clk 0:02:25.8]} 16... Ne4 {[%clk
0:02:36.4]} 17. Ne5 {[%clk 0:02:05.4]} 17... Bf6 {[%clk 0:02:34.3]} 18. Nc6
{[%clk 0:02:01.6]} 18... Bxc6 {[%clk 0:02:30.6]} 19. Rxc6 {[%clk 0:02:01.7]}
19... Nc3 {[%clk 0:02:21.5]} 20. Qc2 {[%clk 0:01:46.9]} 20... Bxd4 {[%clk
0:02:20.3]} 21. Bxh7+ {[%clk 0:01:34.4]} 21... Kh8 {[%clk 0:02:19.4]} 22. exd4
{[%clk 0:01:34.8]} 22... Qxd4 {[%clk 0:02:18.9]} 23. Rc4 {[%clk 0:01:31.1]}
23... Qf6 {[%clk 0:02:15.2]} 24. Bd3 {[%clk 0:01:28]} 24... a5 {[%clk
0:02:08.7]} 25. Qd2 {[%clk 0:01:01.2]} 25... Rac8 {[%clk 0:02:01.7]} 26. Rf4
{[%clk 0:00:54.8]} 26... Qh6 {[%clk 0:02:01.5]} 27. g3 {[%clk 0:00:46.7]} 27...
Kg8 {[%clk 0:01:57]} 28. Qe3 {[%clk 0:00:30.9]} 28... Nd5 {[%clk 0:01:55.2]} 29.
Qe4 {[%clk 0:00:22.6]} 29... Nxf4 {[%clk 0:01:53.3]} 30. gxf4 {[%clk 0:00:23.3]}
30... Rfd8 {[%clk 0:01:53]} 31. Kh1 {[%clk 0:00:21.4]} 31... Rc3 {[%clk
0:01:52.3]} 32. Bc4 {[%clk 0:00:19.3]} 32... Rh3 {[%clk 0:01:46.8]} 33. Qg2
{[%clk 0:00:19.8]} 33... Rh5 {[%clk 0:01:40]} 34. Qg3 {[%clk 0:00:17.4]} 34...
Rf5 {[%clk 0:01:39.6]} 35. Rg1 {[%clk 0:00:13.7]} 35... g6 {[%clk 0:01:38.7]}
36. Qe3 {[%clk 0:00:08.7]} 36... Qxf4 {[%clk 0:01:37.4]} 0-1